fUSD/lending_fUSD_20250123
["ID","MTS","AMOUNT","RATE_DAILY","PERIOD"]
[350066877,1737598239249,-716.06,0.00019151,14]
[350066878,1737598239259,-749.32,0.00019168,2]
[350066879,1737598239269,-500.0,0.00019173,2]
[350066880,1737598239281,-217.28871917,0.00019178,2]
[350066881,1737598239291,-500.0,0.00019178,2]
[350066882,1737598239302,-500.0,0.00019178,2]
[350066883,1737598239312,-326.062984,0.00019178,2]
[350066884,1737598239322,-464.187533,0.00019178,2]
[350066885,1737598239333,-184.5749034,0.00019178,2]
[350066886,1737598239343,-500.0,0.00019178,2]
[350066887,1737598239354,-500.0,0.00019178,7]
[350066888,1737598239364,-500.0,0.00019178,2]
[350066889,1737598239375,-500.0,0.00019178,2]
[350066890,1737598239384,-500.0,0.00019178,2]
[350066891,1737598239395,-500.0,0.00019178,2]
[350066892,1737598239405,-500.0,0.00019178,2]
[350066893,1737598239415,-500.0,0.00019178,2]
[350066894,1737598239424,-500.0,0.00019178,2]
[350066895,1737598239434,-568.6,0.00019178,2]
[350066896,1737598239446,-300.0,0.00019178,2]
[350066897,1737598239456,-500.0,0.00019178,2]
[350066898,1737598239466,-460.63212685,0.00019178,2]
[350066899,1737598239477,-500.0,0.00019178,2]
[350066900,1737598239489,-500.0,0.00019178,2]
[350066901,1737598239500,-500.0,0.00019178,2]
[350066902,1737598239512,-610.89116101,0.00019178,2]
[350066903,1737598239524,-500.0,0.00019178,2]
[350066904,1737598239535,-300.0,0.00019178,2]
[350066905,1737598239545,-500.0,0.00019178,2]
[350066906,1737598239558,-500.0,0.00019178,2]
[350066907,1737598239569,-500.0,0.00019178,2]
[350066908,1737598239580,-500.0,0.00019178,2]
[350066909,1737598239591,-500.0,0.00019178,2]
[350066910,1737598239603,-500.0,0.00019178,2]
[350066911,1737598239613,-500.0,0.00019178,2]
[350066912,1737598239625,-500.0,0.00019178,2]
[350066913,1737598239635,-500.0,0.00019178,2]
[350066914,1737598239646,-500.0,0.00019178,2]
[350066916,1737598239657,-500.0,0.00019178,2]
[350066918,1737598239667,-500.0,0.00019178,2]
[350066920,1737598239677,-500.0,0.00019178,2]
[350066922,1737598239687,-464.52965223,0.00019178,2]
[350066923,1737598239696,-500.0,0.00019178,2]
[350066926,1737598239707,-500.0,0.00019178,2]
[350066928,1737598239718,-500.0,0.00019178,2]
[350066929,1737598239727,-500.0,0.00019178,2]
[350066930,1737598239739,-500.0,0.00019178,2]
[350066931,1737598239749,-311.15,0.00019178,2]
[350066933,1737598239759,-500.0,0.00019178,2]
[350066934,1737598239768,-500.0,0.00019178,2]
[350066936,1737598239778,-500.0,0.00019178,2]
[350066938,1737598239787,-503.00387936,0.00019178,2]
[350066940,1737598239796,-500.0,0.00019178,2]
[350066942,1737598239806,-500.0,0.00019178,2]
[350066944,1737598239816,-506.87768429,0.00019178,2]
[350066946,1737598239827,-512.52128681,0.00019178,2]
[350066948,1737598239837,-509.04722956,0.00019178,2]
[350066950,1737598239847,-500.0,0.00019178,2]
[350066952,1737598239857,-505.85042708,0.00019178,2]
[350066954,1737598239866,-500.0,0.00019178,2]
[350066956,1737598239876,-500.0,0.00019178,2]
[350066958,1737598239888,-498.94330308,0.00019178,2]
[350066960,1737598239898,-500.0,0.00019178,2]
[350066962,1737598239909,-500.0,0.00019178,2]
[350066964,1737598239918,-500.0,0.00019178,2]
[350066966,1737598239928,-501.1735902,0.00019178,2]
[350066968,1737598239938,-501.36797657,0.00019178,2]
[350066970,1737598239948,-507.62726603,0.00019178,2]
[350066972,1737598239958,-500.0,0.00019178,2]
[350066974,1737598239968,-500.0,0.00019178,2]
[350066976,1737598239977,-500.0,0.00019178,2]
[350066978,1737598239989,-500.0,0.00019178,2]
[350066980,1737598240000,-500.0,0.00019178,2]
[350066982,1737598240010,-506.48750505,0.00019178,2]
[350066984,1737598240019,-500.0,0.00019178,2]
[350066986,1737598240028,-500.0,0.00019178,2]
[350066988,1737598240038,-500.0,0.00019178,2]
[350066989,1737598240047,-500.0,0.00019178,2]
[350066991,1737598240057,-500.0,0.00019178,2]
[350066993,1737598240068,-500.0,0.00019178,2]
[350066996,1737598240077,-502.12318188,0.00019178,2]
[350066997,1737598240087,-504.89912797,0.00019178,2]
[350066999,1737598240096,-638.58511228,0.00019178,2]
[350067001,1737598240106,-500.0,0.00019178,2]
[350067003,1737598240115,-621.51548307,0.00019178,2]
[350067005,1737598240124,-500.0,0.00019178,2]
[350067007,1737598240133,-500.0,0.00019178,2]
[350067009,1737598240143,-500.0,0.00019178,2]
[350067011,1737598240153,-500.0,0.00019178,2]
[350067013,1737598240162,-500.0,0.00019178,2]
[350067015,1737598240172,-532.52,0.00019178,2]
[350067017,1737598240181,-500.0,0.00019178,2]
[350067019,1737598240191,-500.0,0.00019178,2]
[350067021,1737598240201,-597.71424144,0.00019178,2]
[350067023,1737598240210,-500.0,0.00019178,2]
[350067025,1737598240220,-500.0,0.00019178,2]
[350067027,1737598240229,-500.0,0.00019178,2]
[350067029,1737598240239,-500.0,0.00019178,2]
[350067030,1737598240249,-512.84073963,0.00019178,2]
[350067032,1737598240258,-500.0,0.00019178,2]
[350067034,1737598240268,-503.06729396,0.00019178,2]
[350067036,1737598240278,-512.58359199,0.00019178,2]
[350067038,1737598240287,-502.3930766,0.00019178,2]
[350067040,1737598240297,-500.0,0.00019178,2]
[350067042,1737598240306,-502.73315529,0.00019178,2]
[350067044,1737598240316,-500.0,0.00019178,2]
[350067046,1737598240327,-500.0,0.00019178,2]
[350067048,1737598240338,-500.0,0.00019178,2]
[350067050,1737598240347,-500.0,0.00019178,2]
[350067052,1737598240357,-500.0,0.00019178,2]
[350067054,1737598240368,-500.0,0.00019178,2]
[350067056,1737598240377,-500.0,0.00019178,2]
[350067059,1737598240387,-500.0,0.00019178,2]
[350067061,1737598240397,-500.0,0.00019178,2]
[350067063,1737598240406,-1208.62,0.00019178,2]
[350067065,1737598240415,-500.0,0.00019178,2]
[350067067,1737598240425,-507.47349704,0.00019178,2]
[350067069,1737598240435,-504.71378151,0.00019178,2]
[350067071,1737598240446,-500.0,0.00019178,2]
[350067073,1737598240456,-500.0,0.00019178,2]
[350067075,1737598240466,-500.0,0.00019178,2]
[350067077,1737598240476,-510.0668394,0.00019178,2]
[350067078,1737598240486,-509.08995063,0.00019178,2]
[350067079,1737598240499,-500.0,0.00019178,2]
[350067080,1737598240514,-500.0,0.00019178,2]
[350067081,1737598240524,-500.0,0.00019178,2]
[350067082,1737598240534,-500.0,0.00019178,2]
[350067083,1737598240545,-500.0,0.00019178,2]
[350067084,1737598240557,-500.0,0.00019178,2]
[350067085,1737598240566,-387.9584602,0.00019178,2]
[350067086,1737598240576,-500.0,0.00019178,2]
[350067087,1737598240588,-500.0,0.00019178,2]
[350067088,1737598240598,-500.0,0.00019178,2]
[350067090,1737598240608,-500.0,0.00019178,2]
[350067092,1737598240618,-500.0,0.00019178,2]
[350067094,1737598240628,-500.0,0.00019178,2]
[350067096,1737598240637,-500.0,0.00019178,2]
[350067098,1737598240646,-500.0,0.00019178,2]
[350067100,1737598240655,-500.0,0.00019178,2]
[350067102,1737598240665,-500.0,0.00019178,2]
[350067103,1737598240675,-500.0,0.00019178,2]
[350067105,1737598240684,-500.0,0.00019178,2]
[350067108,1737598240695,-500.0,0.00019178,2]
[350067109,1737598240704,-500.0,0.00019178,2]
[350067111,1737598240714,-500.0,0.00019178,2]
[350067113,1737598240723,-500.0,0.00019178,2]
[350067115,1737598240733,-500.0,0.00019178,2]
[350067117,1737598240745,-508.60990473,0.00019178,2]
[350067120,1737598240755,-500.0,0.00019178,2]
[350067123,1737598240764,-512.15357465,0.00019178,2]
[350067126,1737598240773,-500.0,0.00019178,2]
[350067129,1737598240783,-500.0,0.00019178,2]
[350067131,1737598240793,-500.0,0.00019178,2]
[350067133,1737598240803,-500.0,0.00019178,2]
[350067136,1737598240812,-500.0,0.00019178,2]
[350067139,1737598240822,-500.0,0.00019178,2]
[350067142,1737598240832,-505.06639855,0.00019178,2]
[350067145,1737598240841,-500.0,0.00019178,2]
[350067147,1737598240850,-500.0,0.00019178,2]
[350067150,1737598240859,-500.0,0.00019178,2]
[350067153,1737598240869,-557.12,0.00019178,2]
[350067156,1737598240878,-500.0,0.00019178,2]
[350067159,1737598240890,-500.0,0.00019178,2]
[350067161,1737598240900,-500.0,0.00019178,2]
[350067162,1737598240909,-500.0,0.00019178,2]
[350067165,1737598240919,-500.0,0.00019178,2]
[350067167,1737598240929,-500.0,0.00019178,2]
[350067168,1737598240939,-489.0,0.00019178,2]
[350067170,1737598240948,-500.0,0.00019178,2]
[350067173,1737598240959,-500.0,0.00019178,2]
[350067175,1737598240968,-304.45187077,0.00019178,2]
[350067177,1737598240978,-502.80718786,0.00019178,2]
[350067179,1737598240990,-500.0,0.00019178,2]
[350067180,1737598240999,-500.0,0.00019178,2]
[350067182,1737598241010,-500.0,0.00019178,2]
[350067184,1737598241020,-500.0,0.00019178,2]
[350067187,1737598241030,-512.96137373,0.00019178,2]
[350067189,1737598241039,-677.87964315,0.00019178,2]
[350067191,1737598241050,-500.0,0.00019178,2]
[350067192,1737598241059,-500.0,0.00019178,2]
[350067194,1737598241069,-500.0,0.00019178,2]
[350067196,1737598241079,-500.0,0.00019178,2]
[350067198,1737598241088,-501.54735537,0.00019178,2]
[350067201,1737598241098,-500.0,0.00019178,2]
[350067202,1737598241107,-508.40313666,0.00019178,2]
[350067205,1737598241117,-500.0,0.00019178,2]
[350067206,1737598241127,-500.0,0.00019178,2]
[350067208,1737598241136,-500.0,0.00019178,2]
[350067211,1737598241146,-500.0,0.00019178,2]
[350067212,1737598241156,-500.0,0.00019178,2]
[350067215,1737598241165,-500.0,0.00019178,2]
[350067217,1737598241175,-500.0,0.00019178,2]
[350067219,1737598241185,-500.0,0.00019178,2]
[350067221,1737598241194,-500.0,0.00019178,2]
[350067223,1737598241203,-500.0,0.00019178,2]
[350067225,1737598241212,-500.0,0.00019178,2]
[350067226,1737598241221,-500.0,0.00019178,2]
[350067228,1737598241231,-500.0,0.00019178,2]
[350067230,1737598241242,-591.65,0.00019178,2]
[350067232,1737598241252,-500.0,0.00019178,2]
[350067234,1737598241261,-447.37666499,0.00019178,2]
[350067236,1737598241270,-500.0,0.00019178,2]
[350067238,1737598241280,-500.0,0.00019178,2]
[350067240,1737598241290,-500.0,0.00019178,2]
[350067242,1737598241300,-500.0,0.00019178,2]
[350067244,1737598241311,-598.59,0.00019178,2]
[350067246,1737598241322,-500.0,0.00019178,2]
[350067247,1737598241332,-500.0,0.00019178,2]
[350067248,1737598241342,-500.0,0.00019178,2]
[350067249,1737598241352,-500.0,0.00019178,2]
[350067250,1737598241362,-500.0,0.00019178,2]
[350067252,1737598241371,-500.0,0.00019178,2]
[350067253,1737598241386,-500.0,0.00019178,2]
[350067254,1737598241404,-500.0,0.00019178,2]
[350067255,1737598241414,-500.0,0.00019178,2]
[350067256,1737598241423,-197.00459664,0.00019178,2]
[350067257,1737598241432,-511.06,0.00019178,2]
[350067258,1737598241442,-500.0,0.00019178,2]
[350067260,1737598241452,-500.0,0.00019178,2]
[350067261,1737598241462,-500.0,0.00019178,2]
[350067262,1737598241471,-504.22276898,0.00019178,2]
[350067263,1737598241481,-500.0,0.00019178,2]
[350067264,1737598241493,-500.0,0.00019178,2]
[350067265,1737598241502,-500.0,0.00019178,2]
[350067266,1737598241519,-500.0,0.00019178,2]
[350067267,1737598241529,-182.08871357,0.00019178,2]
[350067268,1737598241539,-500.0,0.00019178,2]
[350067269,1737598241551,-500.0,0.00019178,2]
[350067270,1737598241562,-500.0,0.00019178,2]
[350067271,1737598241571,-500.0,0.00019178,2]
[350067272,1737598241581,-500.0,0.00019178,2]
[350067273,1737598241593,-500.0,0.00019178,2]
[350067274,1737598241605,-500.0,0.00019178,2]
[350067275,1737598241614,-517.92741156,0.00019178,2]
[350067276,1737598241624,-646.80560777,0.00019178,2]
[350067277,1737598241634,-521.22097818,0.00019178,2]
[350067278,1737598241644,-500.0,0.00019178,2]
[350067279,1737598241654,-500.0,0.00019178,2]
[350067280,1737598241664,-500.0,0.00019178,2]
[350067281,1737598241674,-500.0,0.00019178,2]
[350067282,1737598241684,-500.0,0.00019178,2]
[350067283,1737598241694,-500.0,0.00019178,2]
[350067284,1737598241704,-500.0,0.00019178,2]
[350067285,1737598241713,-500.0,0.00019178,2]
[350067286,1737598241723,-626.68,0.00019178,2]
[350067287,1737598241733,-500.0,0.00019178,2]
[350067288,1737598241745,-500.0,0.00019178,2]
[350067289,1737598241756,-504.32405434,0.00019178,2]
[350067290,1737598241766,-569.54,0.00019178,2]
[350067291,1737598241775,-500.0,0.00019178,2]
[350067292,1737598241785,-500.0,0.00019178,2]
[350067293,1737598241795,-500.0,0.00019178,2]
[350067294,1737598241805,-566.41218512,0.00019178,2]
[350067295,1737598241815,-500.0,0.00019178,2]
[350067296,1737598241824,-618.11757803,0.00019178,2]
[350067297,1737598241834,-582.01722933,0.00019178,2]
[350067298,1737598241844,-500.0,0.00019178,2]
[350067299,1737598241854,-500.0,0.00019178,2]
[350067300,1737598241864,-500.0,0.00019178,2]
[350067301,1737598241874,-500.0,0.00019178,2]
[350067302,1737598241884,-500.0,0.00019178,2]
[350067303,1737598241894,-500.0,0.00019178,2]
[350067304,1737598241904,-445.26185929,0.00019178,2]
[350067305,1737598241913,-501.86961299,0.00019178,2]
[350067306,1737598241923,-500.0,0.00019178,2]
[350067307,1737598241932,-500.0,0.00019178,2]
[350067308,1737598241942,-500.0,0.00019178,2]
[350067309,1737598241952,-669.91,0.00019178,2]
[350067310,1737598241962,-500.0,0.00019178,2]
[350067311,1737598241972,-511.38587034,0.00019178,2]
[350067312,1737598241982,-590.81,0.00019178,2]
[350067313,1737598241993,-500.0,0.00019178,2]
[350067314,1737598242003,-500.0,0.00019178,2]
[350067315,1737598242013,-500.0,0.00019178,2]
[350067316,1737598242023,-502.69503593,0.00019178,2]
[350067317,1737598242033,-500.0,0.00019178,2]
[350067318,1737598242043,-501.03422384,0.00019178,2]
[350067319,1737598242053,-500.0,0.00019178,2]
[350067320,1737598242063,-500.0,0.00019178,2]
[350067321,1737598242072,-500.0,0.00019178,2]
[350067322,1737598242081,-539.23,0.00019178,2]
[350067323,1737598242091,-500.0,0.00019178,2]
[350067324,1737598242100,-500.0,0.00019178,2]
[350067325,1737598242110,-500.0,0.00019178,2]
[350067326,1737598242119,-500.0,0.00019178,2]
[350067327,1737598242128,-500.0,0.00019178,2]
[350067328,1737598242139,-609.49,0.00019178,2]
[350067329,1737598242149,-500.0,0.00019178,2]
[350067330,1737598242287,-508.97738313,0.00019178,2]
[350067331,1737598242329,-497.73528694,0.00019178,2]
[350067332,1737598242339,-507.34040766,0.00019178,2]
[350067333,1737598242349,-500.0,0.00019178,2]
[350067334,1737598242358,-652.2,0.00019178,2]
[350067335,1737598242368,-500.0,0.00019178,2]
[350067336,1737598242379,-500.0,0.00019178,2]
[350067337,1737598242388,-500.0,0.00019178,2]
[350067338,1737598242398,-500.0,0.00019178,2]
[350067339,1737598242407,-500.0,0.00019178,2]
[350067340,1737598242416,-500.0,0.00019178,2]
[350067341,1737598242426,-500.0,0.00019178,2]
[350067342,1737598242435,-500.0,0.00019178,2]
[350067343,1737598242445,-500.0,0.00019178,2]
[350067344,1737598242456,-500.0,0.00019178,2]
[350067345,1737598242465,-500.0,0.00019178,2]
[350067346,1737598242475,-500.0,0.00019178,2]
[350067347,1737598242485,-528.16091178,0.00019178,2]
[350067348,1737598242496,-500.0,0.00019178,2]
[350067349,1737598242506,-500.0,0.00019178,2]
[350067350,1737598242520,-604.62954384,0.00019178,2]
[350067351,1737598242530,-500.0,0.00019178,2]
[350067352,1737598242539,-500.0,0.00019178,2]
[350067353,1737598242548,-500.0,0.00019178,2]
[350067354,1737598242559,-500.0,0.00019178,2]
[350067355,1737598242568,-560.55,0.00019178,2]
[350067356,1737598242579,-500.0,0.00019178,2]
[350067357,1737598242589,-593.284488,0.00019178,2]
[350067358,1737598242599,-500.0,0.00019178,2]
[350067359,1737598242609,-500.0,0.00019178,2]
[350067360,1737598242618,-500.0,0.00019178,2]
[350067361,1737598242628,-500.0,0.00019178,2]
[350067362,1737598242638,-500.0,0.00019178,2]
[350067363,1737598242647,-500.0,0.00019178,2]
[350067364,1737598242658,-500.0,0.00019178,2]
[350067365,1737598242668,-500.0,0.00019178,2]
[350067366,1737598242679,-500.0,0.00019178,2]
[350067367,1737598242689,-500.0,0.00019178,2]
[350067368,1737598242699,-500.0,0.00019178,2]
[350067369,1737598242709,-585.91,0.00019178,2]
[350067370,1737598242718,-500.0,0.00019178,2]
[350067371,1737598242728,-500.0,0.00019178,2]
[350067372,1737598242738,-500.0,0.00019178,2]
[350067373,1737598242749,-500.0,0.00019178,2]
[350067374,1737598242759,-500.0,0.00019178,2]
[350067375,1737598242774,-500.0,0.00019178,2]
[350067376,1737598242784,-500.0,0.00019178,2]
[350067377,1737598242794,-500.0,0.00019178,2]
[350067378,1737598242804,-500.0,0.00019178,2]
[350067379,1737598242814,-510.25855162,0.00019178,2]
[350067380,1737598242823,-500.0,0.00019178,2]
[350067381,1737598242832,-500.0,0.00019178,2]
[350067382,1737598242843,-500.0,0.00019178,2]
[350067383,1737598242853,-500.0,0.00019178,2]
[350067384,1737598242862,-500.0,0.00019178,2]
[350067385,1737598242872,-760.92,0.00019178,2]
[350067386,1737598242881,-304.59812847,0.00019178,2]
[350067387,1737598242892,-500.0,0.00019178,2]
[350067388,1737598242901,-500.0,0.00019178,2]
[350067389,1737598242911,-500.0,0.00019178,2]
[350067390,1737598242920,-500.0,0.00019178,2]
[350067391,1737598242930,-500.0,0.00019178,2]
[350067392,1737598242939,-500.0,0.00019178,2]
[350067393,1737598242949,-500.0,0.00019178,2]
[350067394,1737598242958,-500.0,0.00019178,2]
[350067395,1737598242967,-709.5,0.00019178,2]
[350067396,1737598242977,-500.0,0.00019178,2]
[350067397,1737598242986,-500.0,0.00019178,2]
[350067398,1737598242997,-500.0,0.00019178,2]
[350067399,1737598243007,-500.0,0.00019178,2]
[350067400,1737598243016,-500.0,0.00019178,2]
[350067401,1737598243025,-369.74988051,0.00019178,2]
[350067402,1737598243035,-500.0,0.00019178,2]
[350067403,1737598243045,-783.44,0.00019178,2]
[350067404,1737598243054,-500.0,0.00019178,2]
[350067405,1737598243063,-500.0,0.00019178,2]
[350067406,1737598243073,-734.61,0.00019178,2]
[350067407,1737598243081,-500.0,0.00019178,2]
[350067408,1737598243090,-983.91,0.00019178,2]
[350067409,1737598243099,-500.0,0.00019178,2]
[350067410,1737598243108,-500.0,0.00019178,2]
[350067411,1737598243117,-500.0,0.00019178,2]
[350067412,1737598243129,-500.0,0.00019178,2]
[350067413,1737598243138,-1021.08,0.00019178,2]
[350067414,1737598243147,-500.0,0.00019178,2]
[350067415,1737598243156,-595.13,0.00019178,2]
[350067416,1737598243165,-1861.17,0.00019178,2]
[350067417,1737598243174,-500.0,0.00019178,2]
[350067418,1737598243183,-500.0,0.00019178,2]
[350067419,1737598243192,-500.0,0.00019178,2]
[350067420,1737598243201,-2273.74,0.00019178,2]
[350067421,1737598243210,-500.0,0.00019178,2]
[350067422,1737598243219,-926.57,0.00019178,2]
[350067423,1737598243229,-507.00079207,0.00019178,2]
[350067424,1737598243238,-500.0,0.00019178,2]
[350067425,1737598243248,-500.0,0.00019178,2]
[350067426,1737598243258,-614.41615004,0.00019178,2]
[350067427,1737598243267,-500.0,0.00019178,2]
[350067429,1737598243278,-1695.78,0.00019178,2]
[350067431,1737598243287,-4005.95,0.00019178,2]
[350067433,1737598243297,-500.0,0.00019178,2]
[350067435,1737598243306,-500.0,0.00019178,2]
[350067437,1737598243315,-520.87529596,0.00019178,2]
[350067438,1737598243324,-500.0,0.00019178,2]
[350067439,1737598243334,-500.0,0.00019178,2]
[350067440,1737598243343,-934.73,0.00019178,2]
[350067441,1737598243352,-500.0,0.00019178,2]
[350067442,1737598243362,-1366.9,0.00019178,2]
[350067443,1737598243371,-638.91,0.00019178,2]
[350067444,1737598243380,-500.0,0.00019178,2]
[350067445,1737598243389,-500.0,0.00019178,2]
[350067446,1737598243398,-500.0,0.00019178,2]
[350067447,1737598243407,-500.0,0.00019178,2]
[350067448,1737598243416,-500.0,0.00019178,2]
[350067449,1737598243425,-701.57,0.00019178,2]
[350067450,1737598243436,-500.0,0.00019178,2]
[350067451,1737598243449,-529.10453969,0.00019178,2]
[350067452,1737598243459,-500.0,0.00019178,2]
[350067453,1737598243469,-500.0,0.00019178,2]
[350067454,1737598243479,-500.0,0.00019178,2]
[350067455,1737598243489,-780.6,0.00019178,2]
[350067456,1737598243500,-500.0,0.00019178,2]
[350067457,1737598243515,-500.0,0.00019178,2]
[350067458,1737598243525,-1079.5,0.00019178,2]
[350067459,1737598243534,-543.79931669,0.00019178,2]
[350067460,1737598243544,-500.0,0.00019178,2]
[350067461,1737598243555,-500.0,0.00019178,2]
[350067462,1737598243564,-500.0,0.00019178,2]
[350067463,1737598243573,-2807.93,0.00019178,2]
[350067464,1737598243584,-500.0,0.00019178,2]
[350067465,1737598243594,-500.0,0.00019178,2]
[350067466,1737598243604,-505.75689837,0.00019178,2]
[350067467,1737598243613,-1009.59,0.00019178,2]
[350067468,1737598243623,-500.0,0.00019178,2]
[350067469,1737598243631,-192.10843492,0.00019178,2]
[350067470,1737598243867,-307.89156508,0.00019178,2]
[350067471,1737598243877,-501.49,0.00019178,2]
[350067472,1737598243886,-1169.11,0.00019178,2]
[350067473,1737598243896,-500.0,0.00019178,2]
[350067474,1737598243906,-636.54,0.00019178,2]
[350067475,1737598243915,-500.0,0.00019178,2]
[350067476,1737598243924,-958.43,0.00019178,2]
[350067477,1737598243934,-544.56,0.00019178,2]
[350067478,1737598243944,-500.0,0.00019178,2]
[350067479,1737598243954,-543.70801763,0.00019178,2]
[350067480,1737598243964,-580.23,0.00019178,2]
[350067481,1737598243974,-1894.86,0.00019178,2]
[350067482,1737598243985,-1614.96,0.00019178,2]
[350067483,1737598243997,-500.0,0.00019178,2]
[350067484,1737598244007,-500.0,0.00019178,2]
[350067485,1737598244017,-500.0,0.00019178,2]
[350067486,1737598244027,-500.0,0.00019178,2]
[350067487,1737598244037,-518.2,0.00019178,2]
[350067488,1737598244047,-500.0,0.00019178,2]
[350067489,1737598244062,-500.0,0.00019178,2]
[350067490,1737598244072,-1825.68,0.00019178,2]
[350067491,1737598244081,-500.0,0.00019178,2]
[350067492,1737598244090,-1665.25,0.00019178,2]
[350067493,1737598244100,-1562.79,0.00019178,2]
[350067494,1737598244111,-3410.84,0.00019178,2]
[350067495,1737598244121,-781.49,0.00019178,2]
[350067496,1737598244130,-521.94,0.00019178,2]
[350067497,1737598244139,-715.04,0.00019178,2]
[350067498,1737598244149,-460.0,0.00019178,2]
[350067499,1737598244158,-828.54,0.00019178,2]
[350067500,1737598244168,-1023.25,0.00019178,2]
[350067501,1737598244178,-1545.44,0.00019178,2]
[350067502,1737598244187,-999.21,0.00019178,2]
[350067503,1737598244196,-505.58725743,0.00019178,2]
[350067504,1737598244208,-595.45,0.00019178,2]
[350067505,1737598244217,-500.0,0.00019178,2]
[350067506,1737598244227,-500.0,0.00019178,2]
[350067507,1737598244239,-510.91714502,0.00019178,2]
[350067508,1737598244249,-500.0,0.00019178,2]
[350067509,1737598244259,-941.03,0.00019178,2]
[350067510,1737598244267,-1436.85,0.00019178,2]
[350067511,1737598244277,-500.0,0.00019178,2]
[350067512,1737598244287,-1139.26,0.00019178,2]
[350067513,1737598244297,-505.97432959,0.00019178,2]
[350067514,1737598244307,-500.0,0.00019178,2]
[350067515,1737598244316,-1885.46,0.00019178,2]
[350067516,1737598244327,-502.66741887,0.00019178,2]
[350067517,1737598244337,-500.0,0.00019178,2]
[350067518,1737598244349,-500.0,0.00019178,2]
[350067519,1737598244360,-500.0,0.00019178,2]
[350067520,1737598244369,-500.0,0.00019178,2]
[350067521,1737598244380,-697.25,0.00019178,2]
[350067522,1737598244390,-500.0,0.00019178,2]
[350067523,1737598244399,-500.0,0.00019178,2]
[350067524,1737598244409,-500.0,0.00019178,2]
[350067525,1737598244421,-508.75,0.00019178,2]
[350067526,1737598244433,-510.70626699,0.00019178,2]
[350067527,1737598244442,-515.43423087,0.00019178,2]
[350067528,1737598244452,-502.70952965,0.00019178,2]
[350067529,1737598244461,-1204.01,0.00019178,2]
[350067530,1737598244471,-1170.11,0.00019178,2]
[350067531,1737598244480,-500.0,0.00019178,2]
[350067532,1737598244491,-500.0,0.00019178,2]
[350067533,1737598244501,-2156.54,0.00019178,2]
[350067534,1737598244514,-954.95,0.00019178,2]
[350067535,1737598244523,-2857.56,0.00019178,2]
[350067536,1737598244533,-500.0,0.00019178,2]
[350067537,1737598244544,-500.0,0.00019178,2]
[350067538,1737598244555,-500.0,0.00019178,2]
[350067539,1737598244565,-500.0,0.00019178,2]
[350067540,1737598244578,-500.0,0.00019178,2]
[350067541,1737598244588,-500.0,0.00019178,2]
[350067542,1737598244599,-500.0,0.00019178,2]
[350067543,1737598244608,-500.0,0.00019178,2]
[350067544,1737598244618,-502.57780042,0.00019178,2]
[350067545,1737598244627,-1781.26,0.00019178,2]
[350067546,1737598244637,-500.0,0.00019178,2]